[Event "Titled Tuesday Blitz November 22 Early 2022"]
[White "Szente Varga, Fruzsina"]
[Black "Darini, Pouria"]
[WhiteFideId "712264"]
[BlackFideId "12502200"]
[WhiteElo "1994"]
[BlackElo "2483"]
[Result "0-1"]
[Round "01"]
[TimeControl "180+1"]
[Date "2022.11.23"]
[WhiteClock "0:00:09"]
[BlackClock "0:00:19"]

1. e4 {[%clk 0:03:00]}  c6 {[%clk 0:02:56]} 2. d4 {[%clk 0:03:00]}  d5 {[%clk 0:02:55]} 3. Nc3 {[%clk 0:03:01]}  dxe4 {[%clk 0:02:51]} 4. Nxe4 {[%clk 0:03:02]}  Nf6 {[%clk 0:02:51]} 5. Nxf6+ {[%clk 0:03:01]}  exf6 {[%clk 0:02:52]} 6. c3 {[%clk 0:03:02]}  Bd6 {[%clk 0:02:51]} 7. Bd3 {[%clk 0:03:01]}  O-O {[%clk 0:02:52]} 8. Ne2 {[%clk 0:03:02]}  Re8 {[%clk 0:02:53]} 9. Qc2 {[%clk 0:03:02]}  h5 {[%clk 0:02:53]} 10. Bd2 {[%clk 0:02:59]}  Nd7 {[%clk 0:02:49]} 11. O-O-O {[%clk 0:02:59]}  Nf8 {[%clk 0:02:49]} 12. Ng3 {[%clk 0:02:48]}  g6 {[%clk 0:02:36]} 13. Ne4 {[%clk 0:02:48]}  Be7 {[%clk 0:02:34]} 14. Bh6 {[%clk 0:02:41]}  f5 {[%clk 0:02:25]} 15. Nd2 {[%clk 0:02:08]}  Bg5 {[%clk 0:02:21]} 16. Bxf8 {[%clk 0:01:31]}  Rxf8 {[%clk 0:02:18]} 17. Kb1 {[%clk 0:01:30]}  b5 {[%clk 0:02:05]} 18. f3 {[%clk 0:01:18]}  Be6 {[%clk 0:01:57]} 19. g4 {[%clk 0:01:15]}  Bxd2 {[%clk 0:00:56]} 20. Rxd2 {[%clk 0:01:08]}  Qd5 {[%clk 0:00:54]} 21. b3 {[%clk 0:01:04]}  hxg4 {[%clk 0:00:41]} 22. Rf1 {[%clk 0:00:58]}  gxf3 {[%clk 0:00:39]} 23. Rdf2 {[%clk 0:00:57]}  Kg7 {[%clk 0:00:36]} 24. Rxf3 {[%clk 0:00:56]}  Rh8 {[%clk 0:00:37]} 25. Rg3 {[%clk 0:00:55]}  Rh5 {[%clk 0:00:36]} 26. Rfg1 {[%clk 0:00:26]}  Rah8 {[%clk 0:00:35]} 27. R3g2 {[%clk 0:00:25]}  b4 {[%clk 0:00:27]} 28. Bc4 {[%clk 0:00:22]}  Qd6 {[%clk 0:00:26]} 29. Bxe6 {[%clk 0:00:17]}  Qxe6 {[%clk 0:00:27]} 30. cxb4 {[%clk 0:00:17]}  Qf6 {[%clk 0:00:28]} 31. Qc4 {[%clk 0:00:16]}  Rd8 {[%clk 0:00:27]} 32. Rd2 {[%clk 0:00:15]}  Rh4 {[%clk 0:00:28]} 33. Rgd1 {[%clk 0:00:14]}  Rd5 {[%clk 0:00:28]} 34. Kb2 {[%clk 0:00:13]}  Qd6 {[%clk 0:00:26]} 35. a3 {[%clk 0:00:12]}  Rxh2 {[%clk 0:00:27]} 36. Kb1 {[%clk 0:00:11]}  Rxd2 {[%clk 0:00:27]} 37. Rxd2 {[%clk 0:00:12]}  f4 {[%clk 0:00:27]} 38. Kc2 {[%clk 0:00:12]}  f3 {[%clk 0:00:28]} 39. Qd3 {[%clk 0:00:13]}  f2 {[%clk 0:00:27]} 40. Rxf2 {[%clk 0:00:13]}  Rxd4 {[%clk 0:00:28]} 41. Qc3 {[%clk 0:00:14]}  Kg8 {[%clk 0:00:25]} 42. Re2 {[%clk 0:00:13]}  Qd7 {[%clk 0:00:23]} 43. b5 {[%clk 0:00:13]}  cxb5 {[%clk 0:00:23]} 44. Kb2 {[%clk 0:00:12]}  Rd3 {[%clk 0:00:19]} 45. Qe5 {[%clk 0:00:12]}  Qd4+ {[%clk 0:00:19]} 46. Qxd4 {[%clk 0:00:12]}  Rxd4 {[%clk 0:00:20]} 47. Kc3 {[%clk 0:00:13]}  Rd7 {[%clk 0:00:20]} 48. Kb4 {[%clk 0:00:13]}  Rd6 {[%clk 0:00:18]} 49. Kc5 {[%clk 0:00:13]}  Rf6 {[%clk 0:00:17]} 50. Kxb5 {[%clk 0:00:14]}  Rb6+ {[%clk 0:00:16]} 51. Kc4 {[%clk 0:00:13]}  Kg7 {[%clk 0:00:17]} 52. b4 {[%clk 0:00:14]}  g5 {[%clk 0:00:17]} 53. a4 {[%clk 0:00:14]}  g4 {[%clk 0:00:18]} 54. a5 {[%clk 0:00:15]}  Re6 {[%clk 0:00:18]} 55. Rg2 {[%clk 0:00:14]}  f5 {[%clk 0:00:18]} 56. b5 {[%clk 0:00:13]}  Kf6 {[%clk 0:00:19]} 57. Kc5 {[%clk 0:00:14]}  Kg5 {[%clk 0:00:18]} 58. b6 {[%clk 0:00:15]}  axb6+ {[%clk 0:00:19]} 59. axb6 {[%clk 0:00:15]}  f4 {[%clk 0:00:20]} 60. b7 {[%clk 0:00:15]}  Re8 {[%clk 0:00:21]} 61. Ra2 {[%clk 0:00:14]}  Rb8 {[%clk 0:00:20]} 62. Kc6 {[%clk 0:00:13]}  g3 {[%clk 0:00:20]} 63. Ra5+ {[%clk 0:00:12]}  Kg4 {[%clk 0:00:20]} 64. Kc7 {[%clk 0:00:10]}  Rxb7+ {[%clk 0:00:19]} 65. Kxb7 {[%clk 0:00:11]}  g2 {[%clk 0:00:18]} 66. Ra1 {[%clk 0:00:09]}  f3 {[%clk 0:00:19]} 67. Kc6 {[%clk 0:00:09]}  f2 {[%clk 0:00:19]} 68. Kd5 {[%clk 0:00:09]}  g1=Q {[%clk 0:00:19]} 0-1


[Site "https://www.chess.com"]

[Event "Titled Tuesday Blitz November 22 Early 2022"]
[White "Tabatabaei, M. Amin"]
[Black "Kukreja, Sankalp"]
[WhiteFideId "12521213"]
[BlackFideId "45027676"]
[WhiteElo "2557"]
[BlackElo "2154"]
[Result "1-0"]
[Round "01"]
[TimeControl "180+1"]
[Date "2022.11.22"]
[WhiteClock "0:00:42"]
[BlackClock "0:01:13"]

1. Nf3 {[%clk 0:02:25]}  d5 {[%clk 0:02:56]} 2. d4 {[%clk 0:02:25]}  Nf6 {[%clk 0:02:56]} 3. c3 {[%clk 0:02:25]}  c6 {[%clk 0:02:56]} 4. Qc2 {[%clk 0:02:25]}  Bg4 {[%clk 0:02:55]} 5. Ne5 {[%clk 0:02:25]}  Bh5 {[%clk 0:02:53]} 6. Qf5 {[%clk 0:02:25]}  e6 {[%clk 0:02:52]} 7. Qh3 {[%clk 0:02:25]}  Nbd7 {[%clk 0:02:48]} 8. g4 {[%clk 0:02:24]}  Bg6 {[%clk 0:02:37]} 9. Nxg6 {[%clk 0:02:23]}  fxg6 {[%clk 0:02:38]} 10. g5 {[%clk 0:02:24]}  Ne4 {[%clk 0:02:38]} 11. Qxe6+ {[%clk 0:02:24]}  Be7 {[%clk 0:02:38]} 12. h4 {[%clk 0:02:14]}  Nf8 {[%clk 0:02:38]} 13. Qg4 {[%clk 0:02:14]}  Qd7 {[%clk 0:02:38]} 14. Bh3 {[%clk 0:02:06]}  Qxg4 {[%clk 0:02:32]} 15. Bxg4 {[%clk 0:02:07]}  h6 {[%clk 0:02:30]} 16. f3 {[%clk 0:02:01]}  Nd6 {[%clk 0:02:29]} 17. Rg1 {[%clk 0:01:56]}  Kf7 {[%clk 0:02:24]} 18. Na3 {[%clk 0:01:51]}  Nf5 {[%clk 0:02:06]} 19. h5 {[%clk 0:01:37]}  hxg5 {[%clk 0:01:55]} 20. hxg6+ {[%clk 0:01:38]}  Kxg6 {[%clk 0:01:56]} 21. e4 {[%clk 0:01:38]}  dxe4 {[%clk 0:01:54]} 22. fxe4 {[%clk 0:01:39]}  Nh4 {[%clk 0:01:55]} 23. Nc2 {[%clk 0:01:39]}  Re8 {[%clk 0:01:50]} 24. Bd2 {[%clk 0:01:37]}  Nh7 {[%clk 0:01:50]} 25. e5 {[%clk 0:01:33]}  c5 {[%clk 0:01:47]} 26. O-O-O {[%clk 0:01:33]}  cxd4 {[%clk 0:01:38]} 27. cxd4 {[%clk 0:01:34]}  Rd8 {[%clk 0:01:38]} 28. Bc3 {[%clk 0:01:31]}  Rhf8 {[%clk 0:01:37]} 29. d5 {[%clk 0:01:29]}  Bc5 {[%clk 0:01:36]} 30. Rge1 {[%clk 0:01:27]}  Ng2 {[%clk 0:01:35]} 31. Rh1 {[%clk 0:01:23]}  Nf4 {[%clk 0:01:32]} 32. d6 {[%clk 0:01:20]}  Rfe8 {[%clk 0:01:32]} 33. Kb1 {[%clk 0:01:13]}  Nf8 {[%clk 0:01:32]} 34. Rh8 {[%clk 0:01:06]}  N8e6 {[%clk 0:01:30]} 35. Rxe8 {[%clk 0:01:06]}  Rxe8 {[%clk 0:01:31]} 36. Nb4 {[%clk 0:00:59]}  Kf7 {[%clk 0:01:24]} 37. Nd3 {[%clk 0:00:55]}  Nxd3 {[%clk 0:01:22]} 38. Rxd3 {[%clk 0:00:56]}  Nf4 {[%clk 0:01:22]} 39. Rd1 {[%clk 0:00:49]}  b5 {[%clk 0:01:21]} 40. b4 {[%clk 0:00:44]}  Bb6 {[%clk 0:01:21]} 41. Kb2 {[%clk 0:00:44]}  Rd8 {[%clk 0:01:21]} 42. Kb3 {[%clk 0:00:44]}  Re8 {[%clk 0:01:21]} 43. a4 {[%clk 0:00:44]}  a6 {[%clk 0:01:21]} 44. axb5 {[%clk 0:00:45]}  axb5 {[%clk 0:01:21]} 45. Ra1 {[%clk 0:00:45]}  Kg6 {[%clk 0:01:19]} 46. Ra6 {[%clk 0:00:44]}  Ra8 {[%clk 0:01:13]} 47. Rxa8 {[%clk 0:00:42]} 1-0


[Site "https://www.chess.com"]

[Event "Titled Tuesday Blitz November 22 Early 2022"]
[White "Talibov, Shiroghlan"]
[Black "Hoffmann, Asa"]
[WhiteFideId "13429078"]
[BlackFideId "2001470"]
[WhiteElo "2261"]
[BlackElo "2117"]
[Result "1-0"]
[Round "01"]
[TimeControl "180+1"]
[Date "2022.11.23"]
[WhiteClock "0:00:11"]
[BlackClock "0:00:09"]

1. d4 {[%clk 0:02:55]}  Nf6 {[%clk 0:02:58]} 2. c4 {[%clk 0:02:54]}  c5 {[%clk 0:02:56]} 3. d5 {[%clk 0:02:52]}  e5 {[%clk 0:02:56]} 4. Nc3 {[%clk 0:02:51]}  d6 {[%clk 0:02:56]} 5. e4 {[%clk 0:02:51]}  Be7 {[%clk 0:02:50]} 6. Be2 {[%clk 0:02:51]}  Nbd7 {[%clk 0:02:50]} 7. Be3 {[%clk 0:02:50]}  Nf8 {[%clk 0:02:50]} 8. h3 {[%clk 0:02:49]}  Ng6 {[%clk 0:02:49]} 9. Nf3 {[%clk 0:02:50]}  O-O {[%clk 0:02:46]} 10. Qd2 {[%clk 0:02:48]}  Ne8 {[%clk 0:02:42]} 11. g4 {[%clk 0:02:45]}  a6 {[%clk 0:02:37]} 12. h4 {[%clk 0:02:36]}  h6 {[%clk 0:02:20]} 13. h5 {[%clk 0:02:35]}  Nf4 {[%clk 0:02:18]} 14. Bxf4 {[%clk 0:02:33]}  exf4 {[%clk 0:02:18]} 15. Qxf4 {[%clk 0:02:31]}  Bd7 {[%clk 0:02:08]} 16. a4 {[%clk 0:02:04]}  Rb8 {[%clk 0:02:06]} 17. O-O {[%clk 0:01:43]}  Qc8 {[%clk 0:01:47]} 18. Nh2 {[%clk 0:01:35]}  Bg5 {[%clk 0:01:44]} 19. Qg3 {[%clk 0:01:33]}  Bf6 {[%clk 0:01:36]} 20. f4 {[%clk 0:01:32]}  Bd4+ {[%clk 0:01:33]} 21. Kh1 {[%clk 0:01:30]}  Nf6 {[%clk 0:01:31]} 22. Bf3 {[%clk 0:01:24]}  Re8 {[%clk 0:01:30]} 23. Rae1 {[%clk 0:01:24]}  b5 {[%clk 0:01:28]} 24. axb5 {[%clk 0:01:20]}  axb5 {[%clk 0:01:28]} 25. e5 {[%clk 0:01:18]}  dxe5 {[%clk 0:01:08]} 26. fxe5 {[%clk 0:01:19]}  Nh7 {[%clk 0:01:08]} 27. Nxb5 {[%clk 0:01:03]}  Bxb5 {[%clk 0:01:03]} 28. cxb5 {[%clk 0:01:03]}  Rxb5 {[%clk 0:01:01]} 29. d6 {[%clk 0:00:46]}  Ng5 {[%clk 0:00:58]} 30. Bd5 {[%clk 0:00:40]}  Ne6 {[%clk 0:00:54]} 31. Qf3 {[%clk 0:00:34]}  Rf8 {[%clk 0:00:51]} 32. Re2 {[%clk 0:00:32]}  Qb8 {[%clk 0:00:46]} 33. b3 {[%clk 0:00:28]}  Ng5 {[%clk 0:00:40]} 34. Qg3 {[%clk 0:00:26]}  Rb4 {[%clk 0:00:32]} 35. Nf3 {[%clk 0:00:25]}  Qd8 {[%clk 0:00:30]} 36. Nh4 {[%clk 0:00:23]}  Ne6 {[%clk 0:00:26]} 37. Nf5 {[%clk 0:00:22]}  Qg5 {[%clk 0:00:25]} 38. Ne7+ {[%clk 0:00:12]}  Kh8 {[%clk 0:00:21]} 39. Bxe6 {[%clk 0:00:13]}  f6 {[%clk 0:00:12]} 40. Ng6+ {[%clk 0:00:12]}  Kh7 {[%clk 0:00:12]} 41. Nxf8+ {[%clk 0:00:13]}  Kh8 {[%clk 0:00:11]} 42. Ng6+ {[%clk 0:00:13]}  Kh7 {[%clk 0:00:11]} 43. d7 {[%clk 0:00:14]}  Rb8 {[%clk 0:00:09]} 44. exf6 {[%clk 0:00:12]}  Bxf6 {[%clk 0:00:09]} 45. Qxb8 {[%clk 0:00:11]} 1-0


[Site "https://www.chess.com"]

[Event "Titled Tuesday Blitz November 22 Early 2022"]
[White "Tanenbaum, Zachary"]
[Black "Sahil, Tickoo"]
[WhiteFideId "2060850"]
[BlackFideId "5019710"]
[WhiteElo "2175"]
[BlackElo "2086"]
[Result "1-0"]
[Round "01"]
[TimeControl "180+1"]
[Date "2022.11.23"]
[WhiteClock "0:00:27"]
[BlackClock "0:00:19"]

1. e4 {[%clk 0:02:58]}  c5 {[%clk 0:02:54]} 2. Nf3 {[%clk 0:02:57]}  d6 {[%clk 0:02:55]} 3. d4 {[%clk 0:02:57]}  cxd4 {[%clk 0:02:55]} 4. Nxd4 {[%clk 0:02:58]}  Nf6 {[%clk 0:02:55]} 5. Nc3 {[%clk 0:02:59]}  a6 {[%clk 0:02:56]} 6. Be3 {[%clk 0:03:00]}  e5 {[%clk 0:02:56]} 7. Nb3 {[%clk 0:03:00]}  Be7 {[%clk 0:02:57]} 8. h3 {[%clk 0:03:00]}  Be6 {[%clk 0:02:56]} 9. Qf3 {[%clk 0:02:59]}  O-O {[%clk 0:02:56]} 10. O-O-O {[%clk 0:02:59]}  Qc8 {[%clk 0:02:56]} 11. g4 {[%clk 0:02:56]}  a5 {[%clk 0:02:55]} 12. Bb5 {[%clk 0:02:53]}  Na6 {[%clk 0:02:49]} 13. g5 {[%clk 0:02:49]}  Nd7 {[%clk 0:02:48]} 14. Kb1 {[%clk 0:02:26]}  Nc7 {[%clk 0:02:45]} 15. Ba4 {[%clk 0:02:14]}  b5 {[%clk 0:02:44]} 16. Nxb5 {[%clk 0:02:13]}  Nxb5 {[%clk 0:02:44]} 17. Bxb5 {[%clk 0:02:13]}  a4 {[%clk 0:02:45]} 18. Nc1 {[%clk 0:02:04]}  a3 {[%clk 0:02:45]} 19. b3 {[%clk 0:01:38]}  Qc3 {[%clk 0:01:56]} 20. Nd3 {[%clk 0:01:37]}  Rab8 {[%clk 0:01:46]} 21. Bd2 {[%clk 0:01:30]}  Qd4 {[%clk 0:01:34]} 22. c3 {[%clk 0:01:22]}  Qb6 {[%clk 0:01:29]} 23. c4 {[%clk 0:01:17]}  Rfc8 {[%clk 0:01:21]} 24. Be3 {[%clk 0:01:13]}  Qa5 {[%clk 0:01:20]} 25. Rc1 {[%clk 0:01:11]}  Qa8 {[%clk 0:00:51]} 26. Nb4 {[%clk 0:01:05]}  Nc5 {[%clk 0:00:48]} 27. Nd5 {[%clk 0:00:56]}  Bxd5 {[%clk 0:00:46]} 28. exd5 {[%clk 0:00:57]}  Qb7 {[%clk 0:00:34]} 29. Rhd1 {[%clk 0:00:53]}  Bd8 {[%clk 0:00:28]} 30. h4 {[%clk 0:00:52]}  Bb6 {[%clk 0:00:27]} 31. h5 {[%clk 0:00:52]}  Nd7 {[%clk 0:00:26]} 32. Bc6 {[%clk 0:00:48]}  Qc7 {[%clk 0:00:26]} 33. Bxb6 {[%clk 0:00:43]}  Rxb6 {[%clk 0:00:22]} 34. g6 {[%clk 0:00:40]}  Nf6 {[%clk 0:00:20]} 35. gxf7+ {[%clk 0:00:39]}  Qxf7 {[%clk 0:00:20]} 36. Qf5 {[%clk 0:00:34]}  Rf8 {[%clk 0:00:20]} 37. h6 {[%clk 0:00:26]}  Qg6 {[%clk 0:00:19]} 38. Qxg6 {[%clk 0:00:25]}  hxg6 {[%clk 0:00:20]} 39. hxg7 {[%clk 0:00:25]}  Kxg7 {[%clk 0:00:21]} 40. c5 {[%clk 0:00:25]}  dxc5 {[%clk 0:00:20]} 41. Rxc5 {[%clk 0:00:26]}  Rf7 {[%clk 0:00:21]} 42. d6 {[%clk 0:00:26]}  Nd7 {[%clk 0:00:20]} 43. Bxd7 {[%clk 0:00:25]}  Rxd7 {[%clk 0:00:21]} 44. Rc7 {[%clk 0:00:26]}  Rxc7 {[%clk 0:00:19]} 45. dxc7 {[%clk 0:00:26]}  Rc6 {[%clk 0:00:19]} 46. Rc1 {[%clk 0:00:27]} 1-0


[Site "https://www.chess.com"]

[Event "Titled Tuesday Blitz November 22 Early 2022"]
[White "Torres Dominguez, David"]
[Black "Fecker, Noah"]
[WhiteFideId "2220857"]
[BlackFideId "1334263"]
[WhiteElo "2037"]
[BlackElo "2291"]
[Result "0-1"]
[Round "01"]
[TimeControl "180+1"]
[Date "2022.11.23"]
[WhiteClock "0:00:01"]
[BlackClock "0:00:30"]

1. e4 {[%clk 0:03:00]}  c5 {[%clk 0:02:57]} 2. Nf3 {[%clk 0:03:00]}  Nc6 {[%clk 0:02:58]} 3. d4 {[%clk 0:03:00]}  cxd4 {[%clk 0:02:59]} 4. Nxd4 {[%clk 0:03:00]}  Nf6 {[%clk 0:02:59]} 5. Nxc6 {[%clk 0:03:00]}  bxc6 {[%clk 0:02:59]} 6. Bd3 {[%clk 0:03:01]}  d5 {[%clk 0:02:59]} 7. Nd2 {[%clk 0:03:00]}  e5 {[%clk 0:02:59]} 8. O-O {[%clk 0:02:59]}  Bd6 {[%clk 0:02:59]} 9. Re1 {[%clk 0:02:58]}  O-O {[%clk 0:02:59]} 10. Qe2 {[%clk 0:02:58]}  Re8 {[%clk 0:02:58]} 11. c4 {[%clk 0:02:53]}  Bg4 {[%clk 0:02:57]} 12. Qf1 {[%clk 0:02:38]}  Bc5 {[%clk 0:02:54]} 13. h3 {[%clk 0:02:30]}  Bh5 {[%clk 0:02:53]} 14. cxd5 {[%clk 0:02:28]}  cxd5 {[%clk 0:02:54]} 15. Nb3 {[%clk 0:02:26]}  Bb6 {[%clk 0:02:53]} 16. exd5 {[%clk 0:02:24]}  Qxd5 {[%clk 0:02:51]} 17. Bc4 {[%clk 0:02:21]}  Qd7 {[%clk 0:02:44]} 18. Be3 {[%clk 0:02:20]}  Rec8 {[%clk 0:02:34]} 19. Rac1 {[%clk 0:02:11]}  Qb7 {[%clk 0:02:26]} 20. Qd3 {[%clk 0:01:55]}  Bg6 {[%clk 0:02:22]} 21. Qe2 {[%clk 0:01:52]}  a5 {[%clk 0:02:20]} 22. Bxb6 {[%clk 0:01:28]}  Qxb6 {[%clk 0:02:21]} 23. Qxe5 {[%clk 0:01:23]}  a4 {[%clk 0:02:20]} 24. Nd2 {[%clk 0:01:16]}  Nd7 {[%clk 0:02:10]} 25. Qf4 {[%clk 0:01:12]}  Qxb2 {[%clk 0:02:05]} 26. Ne4 {[%clk 0:01:05]}  Qe5 {[%clk 0:01:20]} 27. Qxe5 {[%clk 0:00:58]}  Nxe5 {[%clk 0:01:21]} 28. Bd5 {[%clk 0:00:55]}  Rxc1 {[%clk 0:01:17]} 29. Rxc1 {[%clk 0:00:54]}  Rd8 {[%clk 0:01:18]} 30. Ng3 {[%clk 0:00:46]}  h5 {[%clk 0:01:13]} 31. Be4 {[%clk 0:00:42]}  h4 {[%clk 0:01:11]} 32. Bxg6 {[%clk 0:00:38]}  hxg3 {[%clk 0:01:11]} 33. Bc2 {[%clk 0:00:33]}  gxf2+ {[%clk 0:01:08]} 34. Kxf2 {[%clk 0:00:32]}  Rd2+ {[%clk 0:01:08]} 35. Kg1 {[%clk 0:00:28]}  a3 {[%clk 0:01:08]} 36. Bb3 {[%clk 0:00:28]}  Kh7 {[%clk 0:01:03]} 37. Rc5 {[%clk 0:00:21]}  Nd3 {[%clk 0:00:55]} 38. Ra5 {[%clk 0:00:17]}  Nf4 {[%clk 0:00:54]} 39. Rxa3 {[%clk 0:00:12]}  Rxg2+ {[%clk 0:00:54]} 40. Kh1 {[%clk 0:00:12]}  f6 {[%clk 0:00:50]} 41. Ra4 {[%clk 0:00:11]}  Rf2 {[%clk 0:00:49]} 42. Kg1 {[%clk 0:00:11]}  Nxh3+ {[%clk 0:00:49]} 43. Kh1 {[%clk 0:00:10]}  Ng5 {[%clk 0:00:50]} 44. Rh4+ {[%clk 0:00:08]}  Kg6 {[%clk 0:00:48]} 45. Rg4 {[%clk 0:00:07]}  Kf5 {[%clk 0:00:39]} 46. Rg2 {[%clk 0:00:06]}  Rf1+ {[%clk 0:00:39]} 47. Rg1 {[%clk 0:00:06]}  Rf2 {[%clk 0:00:39]} 48. Rg2 {[%clk 0:00:06]}  Rf3 {[%clk 0:00:39]} 49. Bc2+ {[%clk 0:00:02]}  Kf4 {[%clk 0:00:38]} 50. Rd2 {[%clk 0:00:01]}  Kg3 {[%clk 0:00:33]} 51. Rd3 {[%clk 0:00:01]}  Rxd3 {[%clk 0:00:29]} 52. Bxd3 {[%clk 0:00:02]}  Ne6 {[%clk 0:00:30]} 53. a4 {[%clk 0:00:01]}  Nc5 {[%clk 0:00:30]} 54. Bc2 {[%clk 0:00:01]}  Nb7 {[%clk 0:00:30]} 0-1


[Site "https://www.chess.com"]

[Event "Titled Tuesday Blitz November 22 Early 2022"]
[White "Vakhlamov, Igor L."]
[Black "Guliev, Logman"]
[WhiteFideId "24126748"]
[BlackFideId "13400061"]
[WhiteElo "2401"]
[BlackElo "2161"]
[Result "1-0"]
[Round "01"]
[TimeControl "180+1"]
[Date "2022.11.23"]
[WhiteClock "0:00:12"]
[BlackClock "0:00:03"]

1. e4 {[%clk 0:02:57]}  c5 {[%clk 0:02:59]} 2. Nf3 {[%clk 0:02:54]}  d6 {[%clk 0:02:59]} 3. Nc3 {[%clk 0:02:51]}  Nf6 {[%clk 0:02:57]} 4. d4 {[%clk 0:02:51]}  cxd4 {[%clk 0:02:57]} 5. Qxd4 {[%clk 0:02:52]}  a6 {[%clk 0:02:55]} 6. e5 {[%clk 0:02:50]}  Nc6 {[%clk 0:02:52]} 7. Qa4 {[%clk 0:02:39]}  dxe5 {[%clk 0:02:31]} 8. Nxe5 {[%clk 0:02:40]}  Bd7 {[%clk 0:02:24]} 9. Nxd7 {[%clk 0:02:41]}  Nxd7 {[%clk 0:02:24]} 10. Be3 {[%clk 0:02:40]}  g6 {[%clk 0:02:24]} 11. Rd1 {[%clk 0:02:17]}  Bg7 {[%clk 0:02:22]} 12. Be2 {[%clk 0:02:14]}  O-O {[%clk 0:02:20]} 13. O-O {[%clk 0:02:14]}  Qc8 {[%clk 0:02:07]} 14. Qh4 {[%clk 0:02:03]}  Nf6 {[%clk 0:01:58]} 15. Na4 {[%clk 0:01:59]}  Qf5 {[%clk 0:01:43]} 16. Bd3 {[%clk 0:01:57]}  Qg4 {[%clk 0:01:39]} 17. Qxg4 {[%clk 0:01:52]}  Nxg4 {[%clk 0:01:40]} 18. Bc5 {[%clk 0:01:52]}  Rad8 {[%clk 0:01:24]} 19. Rfe1 {[%clk 0:01:42]}  Rfe8 {[%clk 0:01:16]} 20. h3 {[%clk 0:01:38]}  Nf6 {[%clk 0:01:02]} 21. Nb6 {[%clk 0:01:29]}  Nd7 {[%clk 0:00:48]} 22. Nxd7 {[%clk 0:01:19]}  Rxd7 {[%clk 0:00:48]} 23. c3 {[%clk 0:01:18]}  Red8 {[%clk 0:00:44]} 24. Bc2 {[%clk 0:01:19]}  e6 {[%clk 0:00:43]} 25. Kf1 {[%clk 0:01:18]}  Ne5 {[%clk 0:00:36]} 26. b3 {[%clk 0:00:59]}  Nc6 {[%clk 0:00:33]} 27. c4 {[%clk 0:00:46]}  Nd4 {[%clk 0:00:32]} 28. Be4 {[%clk 0:00:46]}  b5 {[%clk 0:00:25]} 29. Bxd4 {[%clk 0:00:38]}  Rxd4 {[%clk 0:00:21]} 30. Rxd4 {[%clk 0:00:35]}  Bxd4 {[%clk 0:00:19]} 31. Rd1 {[%clk 0:00:30]}  e5 {[%clk 0:00:18]} 32. Ke2 {[%clk 0:00:29]}  bxc4 {[%clk 0:00:16]} 33. bxc4 {[%clk 0:00:30]}  Rb8 {[%clk 0:00:16]} 34. Rd2 {[%clk 0:00:27]}  Kf8 {[%clk 0:00:16]} 35. Rc2 {[%clk 0:00:27]}  Bc5 {[%clk 0:00:15]} 36. Bd5 {[%clk 0:00:25]}  Ke7 {[%clk 0:00:16]} 37. g3 {[%clk 0:00:21]}  f5 {[%clk 0:00:15]} 38. Rd2 {[%clk 0:00:19]}  Kd6 {[%clk 0:00:16]} 39. Bg8+ {[%clk 0:00:18]}  Bd4 {[%clk 0:00:14]} 40. Bxh7 {[%clk 0:00:17]}  Kc5 {[%clk 0:00:13]} 41. Bxg6 {[%clk 0:00:17]}  Rf8 {[%clk 0:00:10]} 42. Rc2 {[%clk 0:00:17]}  f4 {[%clk 0:00:10]} 43. g4 {[%clk 0:00:12]}  Rh8 {[%clk 0:00:10]} 44. Bh5 {[%clk 0:00:12]}  e4 {[%clk 0:00:09]} 45. Bg6 {[%clk 0:00:12]}  f3+ {[%clk 0:00:05]} 46. Kd2 {[%clk 0:00:12]}  Bxf2 {[%clk 0:00:02]} 47. Bxe4 {[%clk 0:00:12]}  Rxh3 {[%clk 0:00:03]} 48. Rc3 {[%clk 0:00:12]} 1-0


[Site "https://www.chess.com"]

[Event "Titled Tuesday Blitz November 22 Early 2022"]
[White "Zaichenko, Daria"]
[Black "Kalashian, David"]
[WhiteFideId "4197453"]
[BlackFideId "13302418"]
[WhiteElo "2039"]
[BlackElo "2490"]
[Result "0-1"]
[Round "01"]
[TimeControl "180+1"]
[Date "2022.11.23"]
[WhiteClock "0:00:15"]
[BlackClock "0:00:20"]

1. e4 {[%clk 0:02:59]}  c6 {[%clk 0:02:59]} 2. d4 {[%clk 0:02:59]}  g6 {[%clk 0:03:00]} 3. f4 {[%clk 0:02:57]}  d5 {[%clk 0:02:59]} 4. e5 {[%clk 0:02:55]}  h5 {[%clk 0:03:00]} 5. h3 {[%clk 0:02:55]}  Nh6 {[%clk 0:02:58]} 6. Bd3 {[%clk 0:02:53]}  Bf5 {[%clk 0:02:56]} 7. Nf3 {[%clk 0:02:51]}  Bxd3 {[%clk 0:02:56]} 8. Qxd3 {[%clk 0:02:51]}  Nf5 {[%clk 0:02:57]} 9. Ng1 {[%clk 0:02:35]}  e6 {[%clk 0:02:49]} 10. Ne2 {[%clk 0:02:33]}  h4 {[%clk 0:02:48]} 11. c3 {[%clk 0:02:28]}  Nd7 {[%clk 0:02:47]} 12. Nd2 {[%clk 0:02:27]}  Bh6 {[%clk 0:02:44]} 13. Nf3 {[%clk 0:02:27]}  b5 {[%clk 0:02:43]} 14. a4 {[%clk 0:02:23]}  a6 {[%clk 0:02:42]} 15. a5 {[%clk 0:02:20]}  c5 {[%clk 0:02:40]} 16. Bd2 {[%clk 0:02:16]}  c4 {[%clk 0:02:37]} 17. Qc2 {[%clk 0:02:15]}  Nb8 {[%clk 0:02:35]} 18. b4 {[%clk 0:02:09]}  cxb3 {[%clk 0:02:33]} 19. Qxb3 {[%clk 0:02:09]}  Nc6 {[%clk 0:02:34]} 20. Qa3 {[%clk 0:02:08]}  Qe7 {[%clk 0:02:21]} 21. O-O {[%clk 0:01:55]}  Qxa3 {[%clk 0:02:19]} 22. Rxa3 {[%clk 0:01:55]}  Kd7 {[%clk 0:02:19]} 23. Nc1 {[%clk 0:01:51]}  Bf8 {[%clk 0:02:16]} 24. Ra2 {[%clk 0:01:50]}  Be7 {[%clk 0:01:57]} 25. Nd3 {[%clk 0:01:47]}  Rhc8 {[%clk 0:01:57]} 26. Kf2 {[%clk 0:01:31]}  Nd8 {[%clk 0:01:53]} 27. Nfe1 {[%clk 0:01:20]}  Ng3 {[%clk 0:01:42]} 28. Nc2 {[%clk 0:01:10]}  Nxf1 {[%clk 0:01:17]} 29. Kxf1 {[%clk 0:01:10]}  Rc7 {[%clk 0:01:17]} 30. Na1 {[%clk 0:01:06]}  Rac8 {[%clk 0:01:14]} 31. Nb3 {[%clk 0:01:05]}  Nb7 {[%clk 0:01:08]} 32. Ke2 {[%clk 0:01:05]}  Rc4 {[%clk 0:01:04]} 33. Nb2 {[%clk 0:01:03]}  Rxc3 {[%clk 0:00:58]} 34. Bxc3 {[%clk 0:01:02]}  Rxc3 {[%clk 0:00:59]} 35. Nd2 {[%clk 0:00:55]}  Ra3 {[%clk 0:00:55]} 36. Rxa3 {[%clk 0:00:52]}  Bxa3 {[%clk 0:00:56]} 37. Nd3 {[%clk 0:00:51]}  Nxa5 {[%clk 0:00:56]} 38. Nf3 {[%clk 0:00:48]}  Be7 {[%clk 0:00:55]} 39. Kd2 {[%clk 0:00:44]}  Nc4+ {[%clk 0:00:51]} 40. Kc3 {[%clk 0:00:43]}  Ne3 {[%clk 0:00:49]} 41. Nde1 {[%clk 0:00:43]}  a5 {[%clk 0:00:49]} 42. Kd3 {[%clk 0:00:43]}  Nc4 {[%clk 0:00:46]} 43. Kc3 {[%clk 0:00:39]}  Bb4+ {[%clk 0:00:43]} 44. Kb3 {[%clk 0:00:37]}  Nd2+ {[%clk 0:00:37]} 45. Kc2 {[%clk 0:00:33]}  Nxf3 {[%clk 0:00:31]} 46. Nxf3 {[%clk 0:00:33]}  Be7 {[%clk 0:00:31]} 47. Kb3 {[%clk 0:00:33]}  Kc6 {[%clk 0:00:31]} 48. Nd2 {[%clk 0:00:28]}  a4+ {[%clk 0:00:30]} 49. Kb2 {[%clk 0:00:27]}  b4 {[%clk 0:00:29]} 50. Nf1 {[%clk 0:00:25]}  Kb5 {[%clk 0:00:25]} 51. Ne3 {[%clk 0:00:24]}  b3 {[%clk 0:00:22]} 52. Kc3 {[%clk 0:00:22]}  Bb4+ {[%clk 0:00:22]} 53. Kb2 {[%clk 0:00:21]}  Bd2 {[%clk 0:00:22]} 54. Ng4 {[%clk 0:00:18]}  Kb4 {[%clk 0:00:20]} 55. Nf6 {[%clk 0:00:15]}  a3+ {[%clk 0:00:20]} 0-1


[Site "https://www.chess.com"]